bitfinex/quotes_SOLUSD_20240711
["timestamp","ask_amount","ask_price","bid_price","bid_amount"]
[1720656785093,20.0,141.77,141.74,0.17]
[1720656786460,20.0,141.77,141.73,57.02]
[1720656787086,20.0,141.77,141.74,0.17]
[1720656789299,20.0,141.77,141.73,57.02]
[1720656791663,31.68,141.77,141.73,45.34]
[1720656795473,11.68,141.74,141.71,0.1]
[1720656795659,11.68,141.73,141.71,0.1]
[1720656796271,11.68,141.74,141.71,0.1]
[1720656796481,20.0,141.77,141.71,0.1]
[1720656796694,11.68,141.74,141.71,0.1]
[1720656797294,11.68,141.72,141.71,0.1]
[1720656797902,20.0,141.77,141.71,0.1]
[1720656797903,11.68,141.73,141.71,0.1]
[1720656798079,20.0,141.77,141.71,0.1]
[1720656798395,11.68,141.73,141.71,0.1]
[1720656798796,11.68,141.72,141.71,0.1]
[1720656801994,22.7574869,141.77,141.71,0.1]
[1720656802305,11.68,141.73,141.71,0.1]
[1720656802915,22.7574869,141.77,141.71,0.1]
[1720656803081,11.68,141.73,141.71,0.1]
[1720656803284,11.68,141.72,141.71,0.1]
[1720656803590,11.68,141.73,141.71,0.1]
[1720656803794,22.7574869,141.77,141.71,0.1]
[1720656803980,11.68,141.74,141.71,0.1]
[1720656804299,31.68,141.73,141.71,0.1]
[1720656804611,11.68,141.72,141.71,0.1]
[1720656805791,31.68,141.72,141.71,0.1]
[1720656808707,20.0,141.72,141.71,0.1]
[1720656809006,15.7396,141.77,141.71,0.1]
[1720656809007,11.68,141.74,141.71,0.1]
[1720656809212,20.0,141.73,141.71,0.1]
[1720656809392,15.7396,141.77,141.71,0.1]
[1720656809592,16.3871,141.81,141.72,0.17]
[1720656809808,16.3871,141.81,141.72,72.9821]
[1720656810110,11.68,141.77,141.72,72.9821]
[1720656810420,11.68,141.76,141.72,61.3021]
[1720656810593,11.68,141.78,141.74,0.17]
[1720656810793,11.68,141.78,141.74,45.34]
[1720656812485,11.68,141.77,141.74,45.34]
[1720656812913,11.68,141.78,141.74,45.34]
[1720656813091,16.3871,141.81,141.75,11.85]
[1720656813293,31.68,141.8,141.76,45.17]
[1720656813897,18.57351874,141.85,141.77,1.41055913]
[1720656814121,11.68,141.81,141.77,1.41055913]
[1720656815206,31.68,141.8,141.77,1.41055913]
[1720656815898,31.68,141.8,141.76,46.58051774]
[1720656816604,11.68,141.79,141.76,46.41051774]
[1720656816799,11.68,141.78,141.76,45.0]
[1720656817608,11.68,141.77,141.76,45.0]
[1720656818514,20.0,141.8,141.76,45.0]
[1720656818723,11.68,141.77,141.76,45.0]
[1720656818924,11.68,141.78,141.76,45.0]
[1720656821306,11.68,141.8,141.76,45.0]
[1720656821498,20.0,141.79,141.76,45.0]
[1720656823908,20.0,141.79,141.76,56.68]
[1720656824329,11.68,141.8,141.76,56.68]
[1720656826630,11.68,141.8,141.76,45.0]
[1720656826833,11.68,141.79,141.76,45.0]
[1720656827035,11.68,141.79,141.76,0.17]
[1720656831821,21.30845802,141.85,141.76,0.17]
[1720656832134,11.68,141.79,141.76,0.17]
[1720656832934,11.68,141.8,141.76,0.17]
[1720656833124,20.0,141.84,141.76,0.17]
[1720656833125,20.0,141.84,141.78,11.68]
[1720656833324,11.68,141.83,141.79,45.0]
[1720656833525,20.0,141.82,141.79,45.0]
[1720656833740,31.68,141.82,141.79,45.0]
[1720656834108,31.68,141.82,141.78,45.17]
[1720656834337,20.0,141.82,141.78,56.85]
[1720656835628,31.68,141.82,141.78,45.17]
[1720656836553,31.68,141.82,141.79,1.58025591]
[1720656836914,20.0,141.82,141.8,0.17]
[1720656837123,11.68,141.83,141.8,0.17]
[1720656837332,20.0,141.82,141.8,0.17]
[1720656838548,11.68,141.83,141.8,0.17]
[1720656838724,20.0,141.82,141.8,0.17]
[1720656839318,20.0,141.83,141.8,45.17]
[1720656839519,20.0,141.83,141.81,1.41005701]
[1720656840744,11.68,141.82,141.8,45.0]
[1720656842929,31.68,141.83,141.8,45.0]
[1720656843246,31.68,141.83,141.79,45.17]
[1720656844028,20.0,141.83,141.79,56.85]
[1720656846051,31.68,141.83,141.79,45.17]
[1720656848728,11.68,141.82,141.79,45.17]
[1720656849137,31.68,141.81,141.79,45.0]
[1720656849534,20.0,141.81,141.75,11.68]
[1720656849868,11.68,141.79,141.74,29.3169]
[1720656850654,11.68,141.79,141.72,21.9972]
[1720656850953,11.68,141.79,141.74,11.68]
[1720656852156,11.68,141.79,141.75,45.34]
[1720656852463,11.68,141.78,141.75,45.34]
[1720656852647,11.68,141.78,141.76,45.0]
[1720656852846,11.68,141.78,141.75,0.17]
[1720656854149,11.68,141.78,141.74,45.0]
[1720656854836,20.0,141.77,141.74,45.0]
[1720656855429,20.0,141.77,141.74,0.17]
[1720656855631,20.0,141.77,141.74,0.34]
[1720656856529,11.68,141.78,141.75,0.17]
[1720656856726,20.0,141.77,141.75,0.17]
[1720656857359,20.0,141.78,141.75,0.17]
[1720656859457,31.68,141.78,141.74,0.34]
[1720656860331,31.68,141.78,141.74,12.02]
[1720656860535,31.68,141.78,141.75,45.0]
[1720656861156,31.68,141.78,141.74,45.34]
[1720656861359,31.68,141.78,141.74,46.19142878]
[1720656861770,31.68,141.78,141.75,0.85136871]
[1720656862361,11.68,141.77,141.74,45.34]
[1720656862537,11.68,141.77,141.74,0.34]
[1720656864970,31.68,141.78,141.74,0.34]
[1720656870865,20.0,141.78,141.74,0.34]
[1720656871037,20.0,141.79,141.74,0.34]
[1720656872841,20.0,141.79,141.74,0.17]
[1720656873571,11.68,141.77,141.73,45.0]
[1720656873863,31.68,141.76,141.73,45.0]
[1720656874170,31.68,141.76,141.74,45.0]
[1720656874368,11.68,141.75,141.72,45.0]
[1720656874983,11.68,141.75,141.71,45.1]
[1720656876255,11.68,141.75,141.71,0.27]
[1720656878374,20.0,141.76,141.71,0.27]
[1720656878582,11.68,141.74,141.71,0.27]
[1720656879071,20.0,141.77,141.71,0.27]
[1720656879284,11.68,141.74,141.71,0.27]
[1720656883488,20.0,141.77,141.71,0.27]
[1720656883489,11.68,141.72,141.71,0.1]
[1720656886958,11.68,141.73,141.71,0.1]
[1720656887163,11.68,141.74,141.71,0.1]
[1720656887658,20.0,141.73,141.71,0.1]
[1720656887874,20.0,141.73,141.71,1.19285117]
[1720656888361,31.68,141.73,141.71,1.19285117]
[1720656888560,31.68,141.73,141.71,0.1]
[1720656892386,11.68,141.73,141.71,0.1]
[1720656897096,15.2918,141.76,141.71,0.1]
[1720656897295,11.68,141.73,141.71,0.1]
[1720656897791,20.0,141.75,141.71,0.27]
[1720656897996,16.5899,141.8,141.73,0.17]
[1720656898205,19.36447485,141.8,141.73,45.17]
[1720656898369,11.68,141.77,141.73,45.17]
[1720656899294,20.0,141.76,141.73,45.17]
[1720656900293,11.68,141.77,141.73,45.17]
[1720656900496,16.5899,141.8,141.73,56.85]
[1720656900674,11.68,141.78,141.73,56.85]
[1720656900875,20.0,141.77,141.73,56.85]
[1720656902096,20.0,141.77,141.75,0.17]
[1720656903500,16.2234,141.85,141.77,0.17]
[1720656903703,11.68,141.82,141.78,0.17]
[1720656903875,11.68,141.82,141.78,1.58038969]
[1720656904077,16.2234,141.85,141.78,46.58038969]
[1720656904268,11.68,141.82,141.78,46.58038969]
[1720656904672,20.0,141.81,141.78,46.58038969]
[1720656905691,20.0,141.81,141.78,58.26038969]
[1720656905996,31.68,141.82,141.78,46.58038969]
[1720656906699,20.0,141.82,141.78,58.26038969]
[1720656907701,31.68,141.82,141.78,46.58038969]
[1720656910403,11.68,141.8,141.78,45.0]
[1720656910706,20.0,141.82,141.75,0.17]
[1720656910707,11.68,141.79,141.75,0.17]
[1720656911202,31.68,141.78,141.73,11.68]
[1720656913015,31.68,141.78,141.74,45.17]
[1720656913499,20.0,141.78,141.74,56.85]
[1720656915515,20.0,141.78,141.75,0.17]
[1720656919988,11.68,141.8,141.76,0.17]
[1720656920315,11.68,141.8,141.76,45.17]
[1720656920316,20.0,141.79,141.76,45.17]
[1720656920612,31.68,141.79,141.76,45.17]
[1720656920991,31.68,141.79,141.76,0.17]
[1720656921797,11.68,141.78,141.75,45.0]
[1720656922011,11.68,141.77,141.75,45.0]
[1720656922197,11.68,141.76,141.75,45.0]
[1720656922393,11.68,141.76,141.71,6.7246]
[1720656922785,31.68,141.75,141.71,0.1]
[1720656922989,11.68,141.73,141.71,0.1]
[1720656923188,31.68,141.72,141.71,0.1]
[1720656925292,20.0,141.72,141.71,0.1]
[1720656925626,31.68,141.72,141.71,0.1]
[1720656929612,20.0,141.72,141.71,0.1]
[1720656932212,20.0,141.73,141.71,0.1]
[1720656935423,31.68,141.73,141.71,0.1]
[1720656936024,31.68,141.73,141.71,0.5114903]
[1720656938424,20.0,141.73,141.72,0.17]
[1720656938741,20.0,141.73,141.72,0.34]
[1720656939104,20.0,141.73,141.71,0.27]
[1720656939297,20.0,141.74,141.71,0.27]
[1720656939844,31.68,141.74,141.71,0.27]
[1720656940125,11.68,141.73,141.71,0.27]
[1720656942426,31.68,141.74,141.71,0.27]
[1720656942624,20.0,141.74,141.71,0.27]
[1720656942929,11.68,141.74,141.71,0.27]
[1720656943131,20.0,141.73,141.71,0.27]
[1720656943330,11.68,141.74,141.71,0.27]
[1720656943509,15.5702,141.79,141.72,0.17]
[1720656943716,15.5702,141.79,141.73,11.85]
[1720656943919,11.68,141.78,141.74,0.17]
[1720656944121,11.68,141.78,141.74,45.17]
[1720656945133,20.0,141.77,141.74,46.29449584]
[1720656945725,20.0,141.77,141.74,46.12449584]
[1720656945726,31.68,141.77,141.74,46.12449584]
[1720656945909,11.68,141.75,141.74,45.0]
[1720656946109,11.68,141.75,141.72,0.17]
[1720656949711,11.68,141.76,141.72,0.17]
[1720656950223,31.68,141.77,141.72,19.076]
[1720656950428,20.0,141.77,141.74,0.17]
[1720656950627,20.0,141.77,141.74,0.58153445]
[1720656951733,31.68,141.77,141.74,0.17]
[1720656952737,31.68,141.77,141.74,0.8077971]
[1720656953137,31.68,141.77,141.74,0.17]
[1720656954837,11.68,141.76,141.73,45.0]
[1720656955031,11.68,141.75,141.73,45.0]
[1720656955223,11.68,141.76,141.73,0.17]
[1720656958042,31.68,141.77,141.73,0.17]
[1720656961943,11.68,141.76,141.73,0.17]
[1720656962939,20.0,141.77,141.73,0.17]
[1720656963153,20.0,141.78,141.73,0.17]
[1720656963320,31.68,141.78,141.73,0.34]
[1720656963515,2.84026418,141.8,141.74,0.17]
[1720656963735,11.68,141.8,141.75,11.85]
[1720656963939,11.68,141.8,141.76,45.0]
[1720656964342,11.68,141.79,141.76,45.0]
[1720656964527,11.68,141.79,141.75,45.17]
[1720656965642,11.68,141.78,141.75,45.17]
[1720656965950,11.68,141.79,141.75,0.17]
[1720656966244,11.68,141.79,141.75,0.34]
[1720656969024,11.68,141.79,141.75,0.17]
[1720656971260,31.68,141.78,141.75,0.17]
[1720656972537,31.68,141.78,141.74,45.0]
[1720656974728,31.68,141.78,141.75,0.17]
[1720656975250,20.0,141.78,141.75,0.17]
[1720656975446,11.68,141.8,141.75,12.98361922]
[1720656975632,20.0,141.79,141.76,45.0]
[1720656975833,20.0,141.79,141.77,0.96348327]
[1720656976329,11.68,141.81,141.77,0.96348327]
[1720656976635,20.0,141.8,141.77,0.96348327]
[1720656977856,31.68,141.8,141.77,0.96348327]
[1720656978558,31.68,141.8,141.76,45.0]
[1720656978740,31.68,141.8,141.75,45.34]
[1720656979433,31.68,141.8,141.76,1.40716089]
[1720656979634,31.68,141.8,141.77,1.40706163]
[1720656979850,31.68,141.8,141.76,1.40706163]
[1720656980040,31.68,141.8,141.77,1.40706188]
[1720656980355,31.68,141.8,141.76,1.40706188]
[1720656980356,11.68,141.79,141.76,1.40706188]
[1720656980557,20.0,141.78,141.77,1.40696263]
[1720656980727,20.0,141.78,141.76,1.40696263]
[1720656981146,20.0,141.78,141.77,1.40686338]
[1720656981353,20.0,141.78,141.76,1.40686338]
[1720656982557,11.68,141.79,141.76,1.40686338]
[1720656982857,20.0,141.78,141.76,1.40686338]
[1720656983648,20.0,141.78,141.75,46.40686338]
[1720656983859,18.85853446,141.84,141.76,21.41]
[1720656984066,11.68,141.84,141.79,11.85]
[1720656984240,15.4395,141.87,141.81,0.17]
[1720656984441,11.68,141.85,141.81,0.34]
[1720656984961,15.4234,141.9,141.81,12.02]
[1720656985148,11.68,141.86,141.83,0.17]
[1720656985660,11.68,141.85,141.83,0.17]
[1720656986248,20.0,141.84,141.83,0.17]
[1720656990068,21.29147252,141.9,141.83,1.57995604]
[1720656990439,11.68,141.88,141.83,13.25995604]
[1720656990634,11.68,141.89,141.84,56.68]
[1720656990877,11.68,141.88,141.85,1.40973352]
[1720656991866,18.48861874,141.9,141.86,1.40963424]
[1720656992167,31.68,141.89,141.86,0.17]
[1720656992373,31.68,141.89,141.86,1.57951882]
[1720656992575,11.68,141.88,141.86,0.17]
[1720656992876,20.0,141.89,141.86,1.57946454]
[1720656992877,31.68,141.89,141.86,1.57946454]
[1720656993373,11.68,141.88,141.85,1.40946466]
[1720656994151,11.68,141.88,141.86,1.57963172]
[1720656994475,11.68,141.88,141.86,0.17]
[1720656994674,31.68,141.89,141.86,1.57962676]
[1720656994876,31.68,141.89,141.86,0.17]
[1720656995059,31.68,141.89,141.86,1.57950472]
[1720656995262,11.68,141.88,141.86,0.17]
[1720656995459,11.68,141.88,141.85,1.40962671]
[1720656995761,11.68,141.87,141.84,45.0]
[1720656996072,11.68,141.87,141.83,45.17]
[1720656996253,20.0,141.89,141.83,0.17]
[1720656996450,11.68,141.86,141.83,0.51]
[1720656996646,31.68,141.89,141.82,45.0]
[1720656996850,31.68,141.89,141.8,36.2936]
[1720656996851,20.0,141.89,141.81,56.68]
[1720656997069,11.68,141.87,141.82,11.68]
[1720656997366,11.68,141.87,141.83,45.0]
[1720656997953,20.0,141.89,141.83,45.0]
[1720656998172,11.68,141.87,141.84,0.17]
[1720656998579,11.68,141.88,141.84,0.17]
[1720656998891,20.0,141.87,141.84,11.85]
[1720656999076,20.0,141.87,141.85,45.0]
[1720657002489,20.0,141.87,141.84,45.17]
[1720657002704,31.68,141.87,141.84,45.17]
[1720657002905,31.68,141.87,141.84,0.17]
[1720657003202,20.0,141.87,141.84,0.51]
[1720657003393,11.68,141.88,141.84,0.51]
[1720657003574,20.0,141.87,141.84,0.51]
[1720657004593,31.68,141.87,141.84,0.51]
[1720657005693,31.68,141.87,141.84,0.34]
[1720657010569,11.68,141.86,141.84,0.17]
[1720657010773,20.0,141.87,141.84,0.17]
[1720657011011,11.68,141.86,141.84,0.17]
[1720657012704,11.68,141.87,141.84,0.17]
[1720657012894,20.0,141.86,141.84,0.17]
[1720657014385,20.0,141.86,141.84,1.57461914]
[1720657016090,11.68,141.88,141.84,1.57461914]
[1720657016303,20.0,141.87,141.84,1.57461914]
[1720657018081,11.68,141.88,141.84,1.57461914]
[1720657018393,20.0,141.87,141.84,1.57461914]
[1720657018703,11.68,141.88,141.84,1.57461914]
[1720657019005,20.0,141.87,141.85,0.17]
[1720657019307,31.68,141.89,141.85,45.17]
[1720657019505,31.68,141.89,141.86,1.40878272]
[1720657019883,11.68,141.88,141.86,1.40878272]
[1720657020192,20.0,141.87,141.86,1.40878272]
[1720657021994,20.0,141.87,141.85,46.40878334]
[1720657022192,11.68,141.86,141.84,0.17]
[1720657022389,20.0,141.87,141.84,0.17]
[1720657022604,11.68,141.86,141.84,0.17]
[1720657022883,20.0,141.88,141.83,11.85]
[1720657023203,11.68,141.88,141.85,0.17]
[1720657023678,20.0,141.87,141.85,0.17]
[1720657024797,20.0,141.89,141.85,11.85]
[1720657024978,11.68,141.9,141.87,0.17]
[1720657025705,11.68,141.91,141.87,0.17]
[1720657026001,2.82613499,141.94,141.87,0.17]
[1720657026201,11.68,141.91,141.87,0.17]
[1720657026395,20.0,141.9,141.87,0.17]
[1720657028600,31.68,141.9,141.87,0.17]
[1720657030485,11.68,141.89,141.86,45.0]
[1720657030684,20.0,141.9,141.84,6.5493]
[1720657030685,11.68,141.88,141.84,6.5493]
[1720657031215,11.68,141.89,141.84,18.2293]
[1720657031912,31.68,141.9,141.85,11.85]
[1720657032114,11.68,141.89,141.86,45.0]
[1720657032326,11.68,141.89,141.85,45.17]
[1720657032500,11.68,141.87,141.81,22.5243]
[1720657032702,20.0,141.86,141.82,7.0511]
[1720657033020,20.0,141.86,141.85,11.68]
[1720657033189,19.19174547,141.95,141.85,11.68]
[1720657033386,11.68,141.9,141.85,11.68]
[1720657033724,20.0,141.89,141.85,11.68]
[1720657033925,20.0,141.89,141.86,45.34]
[1720657034425,20.0,141.9,141.86,12.02]
[1720657034616,20.0,141.9,141.88,0.17]
[1720657034916,11.68,141.91,141.88,0.17]
[1720657035101,20.0,141.9,141.88,0.17]
[1720657037092,20.0,141.9,141.88,0.34]
[1720657037313,20.0,141.94,141.88,0.34]
[1720657037517,11.68,141.92,141.88,0.34]
[1720657037718,31.68,141.91,141.88,0.34]
[1720657038599,20.0,141.91,141.88,0.34]
[1720657038799,11.68,141.92,141.88,0.34]
[1720657039004,20.0,141.91,141.88,0.34]
[1720657039620,31.68,141.91,141.88,0.34]
[1720657039921,31.68,141.91,141.88,0.17]
[1720657041103,11.68,141.9,141.88,0.17]
[1720657042396,20.0,141.91,141.88,0.17]
[1720657042601,11.68,141.91,141.88,0.17]
[1720657042914,31.68,141.9,141.88,0.17]
[1720657044117,20.0,141.9,141.88,0.17]
[1720657045527,31.68,141.9,141.83,24.6769]
[1720657045733,20.0,141.9,141.83,29.3063]
[1720657045898,11.68,141.88,141.83,29.3063]
[1720657046810,11.68,141.87,141.83,11.68]
[1720657047015,11.68,141.88,141.84,45.0]
[1720657047712,11.68,141.87,141.84,45.0]
[1720657048311,11.68,141.87,141.85,0.17]
[1720657048520,11.68,141.88,141.85,0.17]
[1720657050634,11.68,141.88,141.85,0.34]
[1720657053107,2.85272798,141.92,141.85,0.34]
[1720657053425,11.68,141.88,141.85,0.34]
[1720657055019,11.68,141.88,141.85,1.74962843]
[1720657057504,11.68,141.89,141.85,1.74962843]
[1720657057705,20.0,141.88,141.85,13.42962843]
[1720657058028,20.0,141.88,141.87,0.17]
[1720657061741,20.0,141.88,141.87,1.5794297]
[1720657063637,20.0,141.88,141.87,0.17]
[1720657064833,11.68,141.89,141.87,0.17]
[1720657065029,20.0,141.88,141.87,0.17]
[1720657067922,31.68,141.88,141.86,45.0]
[1720657072651,20.0,141.88,141.86,45.0]
[1720657075339,31.68,141.88,141.86,45.0]
[1720657075521,11.68,141.87,141.86,45.0]
[1720657080537,11.68,141.87,141.83,0.17]
[1720657080538,31.68,141.87,141.83,0.17]
[1720657080725,31.68,141.86,141.83,45.17]
[1720657081330,11.68,141.86,141.83,45.17]
[1720657082546,11.68,141.86,141.83,45.0]
[1720657082737,31.68,141.85,141.83,45.0]
[1720657082939,20.0,141.85,141.83,45.0]
[1720657083122,11.68,141.84,141.78,22.227]
[1720657083331,11.68,141.82,141.78,6.6375]
[1720657084943,11.68,141.82,141.79,45.34]
[1720657085253,11.68,141.82,141.76,38.8749]
[1720657085254,11.68,141.82,141.76,17.6349]
[1720657085459,11.68,141.8,141.76,17.6349]
[1720657086044,11.68,141.8,141.75,43.3213]
[1720657086433,11.68,141.8,141.75,55.0013]
[1720657086760,20.0,141.79,141.72,37.7508]
[1720657086936,11.68,141.77,141.73,11.68]
[1720657087449,11.68,141.77,141.73,7.0556]
[1720657087634,11.68,141.77,141.72,17.6394]
[1720657087828,11.68,141.76,141.71,0.1]
[1720657088051,11.68,141.75,141.71,0.1]
[1720657088359,11.68,141.74,141.71,0.1]
[1720657088735,22.538,141.79,141.71,0.1]
[1720657088939,11.68,141.75,141.71,0.1]
[1720657089254,11.68,141.73,141.71,0.1]
[1720657090333,11.68,141.72,141.71,0.1]
[1720657091457,31.68,141.72,141.71,0.1]
[1720657092436,20.0,141.72,141.71,0.1]
[1720657092655,31.68,141.72,141.71,0.1]
[1720657094553,20.0,141.72,141.71,0.1]
[1720657094758,31.68,141.72,141.71,0.1]
[1720657095060,20.0,141.72,141.65,0.17]
[1720657095260,11.68,141.69,141.65,0.51]
[1720657095451,11.68,141.68,141.65,0.51]
[1720657095853,11.68,141.68,141.65,0.34]
[1720657096163,20.0,141.71,141.65,0.34]
[1720657096164,11.68,141.69,141.65,0.34]
[1720657097252,11.68,141.68,141.65,0.34]
[1720657097952,11.68,141.68,141.65,1.75162378]
[1720657101459,20.0,141.71,141.65,1.75162378]
[1720657101650,11.68,141.69,141.65,1.75162378]
[1720657101963,11.68,141.68,141.65,1.75162378]
[1720657102345,11.68,141.68,141.65,1.58162378]
[1720657104479,20.0,141.72,141.67,0.17]
[1720657104778,11.68,141.7,141.67,45.17]
[1720657105077,20.0,141.69,141.67,0.17]
[1720657105274,31.68,141.69,141.66,45.0]
[1720657105569,31.68,141.69,141.65,45.17]
[1720657106273,11.68,141.68,141.65,0.17]
[1720657106484,11.68,141.66,141.65,0.17]
[1720657106775,11.68,141.67,141.65,0.17]
[1720657107751,20.0,141.69,141.64,0.8512255]
[1720657107752,11.68,141.66,141.64,0.8512255]
[1720657108465,11.68,141.67,141.65,0.17]
[1720657110659,11.68,141.67,141.64,0.8512255]
[1720657111580,11.68,141.67,141.65,0.17]
[1720657112373,11.68,141.67,141.64,0.8512255]
[1720657112581,16.6491,141.73,141.65,0.17]
[1720657112756,11.68,141.67,141.64,0.8512255]
[1720657112952,11.68,141.65,141.61,0.1]
[1720657113287,11.68,141.65,141.53,6.4932]
[1720657113288,23.36,141.62,141.53,13.5584]
[1720657113463,11.68,141.57,141.53,13.5584]
[1720657113659,11.68,141.57,141.53,25.2384]
[1720657113876,16.2952,141.66,141.53,6.4932]
[1720657114081,20.0,141.65,141.55,32.92]
[1720657114292,11.68,141.59,141.54,7.0649]
[1720657114585,11.68,141.59,141.53,13.5587]
[1720657114959,20.0,141.65,141.55,11.68]
[1720657115201,11.68,141.6,141.54,28.3047]
[1720657115354,20.0,141.65,141.55,39.9845]
[1720657115553,11.68,141.6,141.55,39.9845]
[1720657116190,11.68,141.6,141.56,45.51]
[1720657120261,11.68,141.59,141.56,45.51]
[1720657120466,20.0,141.65,141.56,45.51]
[1720657120467,11.68,141.58,141.56,45.51]
[1720657120678,11.68,141.58,141.57,45.17]
[1720657120966,11.68,141.58,141.57,0.34]
[1720657121166,11.68,141.58,141.56,0.17]
[1720657121377,11.68,141.57,141.56,0.17]
[1720657122382,11.68,141.57,141.53,6.4932]
[1720657122709,16.2222,141.6,141.53,6.4932]
[1720657122891,11.68,141.56,141.51,33.12]
[1720657123060,11.68,141.56,141.51,21.44]
[1720657123260,11.68,141.55,141.51,0.2]
[1720657125470,11.68,141.54,141.52,0.17]
[1720657125695,11.68,141.54,141.51,0.2]
[1720657126690,11.68,141.54,141.52,0.17]
[1720657128881,11.68,141.54,141.51,0.2]
[1720657129080,16.2222,141.6,141.51,0.2]
[1720657129081,11.68,141.53,141.51,0.2]
[1720657129281,11.68,141.52,141.51,0.2]
[1720657131283,22.473,141.51,141.42,258.0]
[1720657131604,22.473,141.51,141.41,21.44]
[1720657131605,11.68,141.43,141.41,0.2]
[1720657131772,11.68,141.44,141.41,0.2]
[1720657131978,20.0,141.5,141.41,18.9516]
[1720657132174,11.68,141.45,141.41,0.2]
[1720657132408,11.68,141.44,141.41,0.2]
[1720657132894,11.68,141.45,141.41,0.2]
[1720657133303,11.68,141.44,141.41,0.2]
[1720657133598,11.68,141.47,141.42,0.17]
[1720657133802,11.68,141.43,141.42,0.17]
[1720657133973,11.68,141.44,141.42,0.17]
[1720657134480,11.68,141.43,141.41,0.2]
[1720657134793,11.68,141.47,141.41,0.2]
[1720657134794,11.68,141.42,141.41,0.2]
[1720657135694,11.68,141.43,141.41,0.2]
[1720657135895,11.68,141.42,141.41,0.2]
[1720657136089,46.72,141.47,141.41,0.2]
[1720657136396,20.0,141.46,141.41,0.2]
[1720657136592,25.32114921,141.51,141.41,0.2]
[1720657136593,11.68,141.45,141.41,7.2714]
[1720657136799,25.32114921,141.51,141.41,0.2]
[1720657136979,11.68,141.47,141.43,21.24]
[1720657137180,11.68,141.49,141.44,11.68]
[1720657137379,11.68,141.49,141.45,0.17]
[1720657137603,11.68,141.48,141.45,45.51]
[1720657137787,16.309,141.51,141.45,0.51]
[1720657138100,11.68,141.48,141.45,0.51]